bitfinex/quotes_BTCUSD_20241028
["timestamp","ask_amount","ask_price","bid_price","bid_amount"]
[1730124563375,0.144815,69054.0,69050.0,0.000822]
[1730124563599,0.22860381,69055.0,69050.0,0.000822]
[1730124563600,0.003,69051.0,69050.0,0.000822]
[1730124564039,0.001,69051.0,69050.0,0.000822]
[1730124564252,0.144815,69054.0,69050.0,0.000822]
[1730124564485,0.144819,69052.0,69050.0,0.000822]
[1730124564764,0.14482,69051.0,69050.0,0.000822]
[1730124565158,0.31032381,69051.0,69050.0,0.000822]
[1730124565791,0.30942381,69051.0,69050.0,0.000822]
[1730124566074,0.30932381,69051.0,69050.0,0.000822]
[1730124566758,0.30862381,69051.0,69050.0,0.000822]
[1730124566979,0.31042381,69051.0,69050.0,0.001822]
[1730124567212,0.30932381,69051.0,69050.0,0.000822]
[1730124567451,0.30832381,69051.0,69050.0,0.000822]
[1730124567689,0.001,69051.0,69050.0,0.001822]
[1730124567915,0.15682,69051.0,69050.0,0.001822]
[1730124568367,0.367726,69055.0,69050.0,0.000822]
[1730124568368,0.144818,69052.0,69050.0,0.000822]
[1730124568601,0.15050381,69052.0,69050.0,0.145644]
[1730124568816,0.15050381,69052.0,69050.0,0.000822]
[1730124568817,0.14482,69051.0,69050.0,0.000822]
[1730124569716,0.29532381,69051.0,69050.0,0.000822]
[1730124569969,0.30532381,69051.0,69050.0,0.000822]
[1730124570207,0.30532381,69051.0,69050.0,0.001822]
[1730124570208,0.31132381,69051.0,69050.0,0.001822]
[1730124570442,0.31032381,69051.0,69050.0,0.000822]
[1730124570665,0.64153969,69051.0,69050.0,0.000822]
[1730124570881,0.94322641,69051.0,69050.0,0.000822]
[1730124571089,1.20962641,69051.0,69050.0,0.000822]
[1730124571314,0.95472381,69051.0,69050.0,0.000822]
[1730124571549,0.96672381,69051.0,69050.0,0.002822]
[1730124571767,0.96572381,69051.0,69050.0,0.001822]
[1730124571984,0.96772381,69051.0,69050.0,0.001822]
[1730124572211,1.22262641,69051.0,69050.0,0.001822]
[1730124572456,0.3997586,69034.0,69022.0,0.145702]
[1730124572675,0.3997586,69034.0,69024.0,0.144876]
[1730124572898,0.3997586,69034.0,69025.0,0.144874]
[1730124573112,0.144868,69028.0,69022.0,0.000823]
[1730124573442,0.144879,69023.0,69022.0,0.000823]
[1730124573670,0.289726,69031.0,69022.0,0.000823]
[1730124573671,0.15050381,69030.0,69024.0,0.144876]
[1730124573922,0.144871,69027.0,69023.0,0.144878]
[1730124574126,0.289717,69033.0,69027.0,0.14487]
[1730124574333,0.001,69028.0,69027.0,0.144868]
[1730124574541,0.001,69028.0,69023.0,0.289757]
[1730124574748,0.001,69028.0,69024.0,0.144877]
[1730124574966,0.144869,69028.0,69023.0,0.144878]
[1730124575174,0.40540641,69032.0,69022.0,0.145703]
[1730124575375,0.144875,69026.0,69023.0,0.144879]
[1730124575592,0.144871,69027.0,69023.0,0.144879]
[1730124575795,0.144879,69023.0,69022.0,0.000823]
[1730124576015,0.29538281,69023.0,69022.0,0.000823]
[1730124576254,0.37238281,69023.0,69022.0,0.000823]
[1730124577338,0.38738281,69023.0,69022.0,0.000823]
[1730124577569,0.66628541,69023.0,69022.0,0.001823]
[1730124577793,0.66528541,69023.0,69022.0,0.000823]
[1730124578012,0.66528541,69023.0,69022.0,0.001823]
[1730124578013,0.67928541,69023.0,69022.0,0.001823]
[1730124578233,0.68028541,69023.0,69022.0,0.002823]
[1730124578458,0.66628541,69023.0,69022.0,0.001823]
[1730124579564,0.66628541,69023.0,68998.0,0.21652677]
[1730124579565,0.005,69012.0,68998.0,0.21652677]
[1730124579784,0.005,69012.0,69005.0,0.21652677]
[1730124579785,0.144914,69006.0,69005.0,0.21652677]
[1730124580008,0.29541781,69006.0,69005.0,0.21652677]
[1730124580492,0.29541781,69006.0,68984.0,0.21652677]
[1730124580493,0.005,69001.0,68984.0,0.50644477]
[1730124580495,0.005,69001.0,68988.0,0.144952]
[1730124580496,0.144943,68993.0,68988.0,0.144952]
[1730124580718,0.15050381,68993.0,68991.0,0.36147277]
[1730124580944,0.15050381,68993.0,68991.0,0.21652677]
[1730124581170,0.29544581,68993.0,68988.0,0.144951]
[1730124581396,0.15050381,68993.0,68985.0,0.289916]
[1730124581631,0.289888,68992.0,68986.0,0.144955]
[1730124581859,0.289897,68990.0,68981.0,0.289934]
[1730124582084,0.40540641,68992.0,68985.0,0.144958]
[1730124582318,0.144953,68988.0,68980.0,0.00082]
[1730124582547,0.144951,68989.0,68984.0,0.144959]
[1730124582794,0.289892,68991.0,68983.0,0.289923]
[1730124582795,0.15050381,68991.0,68983.0,0.289923]
[1730124583022,0.144948,68990.0,68986.0,0.144956]
[1730124583248,0.15050381,68991.0,68988.0,0.004]
[1730124583481,0.29544981,68991.0,68988.0,0.004]
[1730124583718,0.001,68993.0,68990.0,0.36147477]
[1730124583956,0.21652677,69003.0,68988.0,0.289905]
[1730124584196,0.15050381,69002.0,68998.0,0.144931]
[1730124584425,0.15050381,69002.0,68989.0,0.289898]
[1730124584426,0.15050381,69002.0,68990.0,0.21652677]
[1730124584654,0.144927,69000.0,68992.0,0.289887]
[1730124584884,0.29543081,69000.0,68995.0,0.144937]
[1730124585100,0.15050381,69000.0,68996.0,0.144935]
[1730124585315,0.15050381,69000.0,68992.0,0.289887]
[1730124585567,0.15050381,69000.0,68996.0,0.144935]
[1730124585768,0.29548281,69000.0,68995.0,0.144937]
[1730124585977,0.29548281,69000.0,68990.0,0.21652677]
[1730124585978,0.289859,68999.0,68990.0,0.21652677]
[1730124586194,0.144932,68998.0,68990.0,0.21652677]
[1730124586420,0.144933,68997.0,68993.0,0.144941]
[1730124587104,0.15050381,68997.0,68990.0,0.144946]
[1730124587318,0.144949,68990.0,68978.0,0.1]
[1730124587541,0.144947,68991.0,68990.0,0.001]
[1730124587761,0.29545081,68991.0,68990.0,0.001]
[1730124588019,0.29545081,68991.0,68986.0,0.144955]
[1730124588229,0.29545081,68991.0,68985.0,0.289918]
[1730124588439,0.29545081,68991.0,68990.0,0.001]
[1730124588676,0.15050381,68991.0,68990.0,0.001]
[1730124588892,0.2549026,69001.0,68990.0,0.290896]
[1730124589104,0.289873,68996.0,68990.0,0.001]
[1730124589360,0.144946,68991.0,68990.0,0.001]
[1730124589590,0.29544981,68991.0,68990.0,0.001]
[1730124589792,0.29544981,68991.0,68985.0,0.21652677]
[1730124589793,0.40540641,68991.0,68985.0,0.21652677]
[1730124590026,0.40940641,68991.0,68985.0,0.21652677]
[1730124590242,0.40940641,68991.0,68989.0,0.14495]
[1730124590243,0.15850381,68991.0,68989.0,0.14495]
[1730124590458,0.008,68991.0,68990.0,0.144948]
[1730124590665,0.004,68991.0,68990.0,0.144348]
[1730124590871,0.004,68991.0,68990.0,0.144148]
[1730124591076,5e-05,69000.0,68993.0,0.14494]
[1730124591300,5e-05,68996.0,68993.0,0.144841]
[1730124591529,0.15055381,68996.0,68992.0,0.144944]
[1730124591788,0.15055381,68996.0,68993.0,0.144242]
[1730124591986,0.29548981,68996.0,68993.0,0.144042]
[1730124592191,0.44042781,68996.0,68989.0,0.289897]
[1730124592410,0.144939,68995.0,68991.0,0.144946]
[1730124592614,0.29548881,68996.0,68992.0,0.144943]
[1730124592844,0.144938,68995.0,68991.0,0.144946]
[1730124593107,0.144938,68995.0,68988.0,0.21652677]
[1730124593108,0.15050381,68995.0,68988.0,0.21652677]
[1730124593340,0.14494,68994.0,68993.0,0.001]
[1730124593568,5e-05,68996.0,68989.0,0.289901]
[1730124593798,5e-05,68996.0,68995.0,0.144938]
[1730124595751,5e-05,68996.0,68992.0,0.289884]
[1730124595752,0.144986,68996.0,68992.0,0.144943]
[1730124595840,0.144986,68996.0,68993.0,0.144941]
[1730124595841,5e-05,68996.0,68993.0,0.144941]
[1730124596283,0.0001,68996.0,68993.0,0.144941]
[1730124596497,0.0031,68996.0,68993.0,0.144941]
[1730124596724,0.0031,68996.0,68994.0,0.144939]
[1730124597180,0.0031,68996.0,68993.0,0.144941]
[1730124597406,0.144946,68992.0,68981.0,0.28993]
[1730124597615,0.144946,68992.0,68989.0,0.14495]
[1730124597850,0.15460381,68996.0,68981.0,0.28993]
[1730124597851,0.15160381,68996.0,68981.0,0.28993]
[1730124598070,0.15160381,68996.0,68985.0,0.289918]
[1730124598071,0.15050381,68991.0,68985.0,0.289918]
[1730124598319,0.15050381,68991.0,68988.0,0.144951]
[1730124598560,0.15050381,68991.0,68985.0,0.289918]
[1730124599001,0.15050381,68991.0,68989.0,0.144949]
[1730124599236,0.15050381,68991.0,68988.0,0.144951]
[1730124599745,0.15050381,68991.0,68978.0,0.1]
[1730124599981,0.15050381,68991.0,68989.0,0.002]
[1730124599982,0.2549026,68990.0,68989.0,0.002]
[1730124600232,0.84525141,68990.0,68989.0,0.002]
[1730124600482,0.84525141,68990.0,68979.0,0.21652677]
[1730124600483,0.144967,68981.0,68979.0,0.21652677]
[1730124600711,0.15050381,68981.0,68979.0,0.21652677]
[1730124600966,0.15050381,68981.0,68972.0,0.21652677]
[1730124600967,0.29547081,68981.0,68972.0,0.21652677]
[1730124601423,0.29547081,68981.0,68967.0,0.289992]
[1730124601661,0.29547081,68981.0,68965.0,0.21652677]
[1730124601662,0.15050381,68981.0,68973.0,0.21652677]
[1730124601897,0.3365026,68990.0,68981.0,0.144967]
[1730124601898,0.289905,68988.0,68981.0,0.144967]
[1730124602156,0.289905,68988.0,68973.0,0.50649477]
[1730124602157,0.15050381,68987.0,68982.0,0.144963]
[1730124602390,0.15050381,68987.0,68973.0,0.21652677]
[1730124602625,0.15050381,68987.0,68979.0,0.28994]
[1730124602855,0.15050381,68987.0,68981.0,0.289934]
[1730124603112,0.29545981,68987.0,68983.0,0.144961]
[1730124603351,0.15050381,68987.0,68985.0,0.144958]
[1730124603630,0.15050381,68987.0,68983.0,0.144962]
[1730124604053,0.15050381,68987.0,68984.0,0.14496]
[1730124604317,0.15050381,68987.0,68980.0,0.00282]
[1730124604543,0.144956,68986.0,68982.0,0.144964]
[1730124605236,0.14496,68985.0,68980.0,0.00082]
[1730124605459,0.15050381,68984.0,68980.0,0.00082]
[1730124605693,0.144967,68981.0,68980.0,0.00082]
[1730124605940,0.15050381,68981.0,68980.0,0.00082]
[1730124606191,0.005,68987.0,68980.0,0.00082]
[1730124606434,0.15350381,68987.0,68984.0,0.144959]
[1730124606670,0.15350381,68987.0,68981.0,0.144967]
[1730124606671,0.15050381,68987.0,68981.0,0.144967]
[1730124606904,0.289902,68989.0,68980.0,0.00282]
[1730124606905,0.289918,68985.0,68980.0,0.00282]
[1730124607142,0.144961,68984.0,68980.0,0.00082]
[1730124607403,0.44042181,68985.0,68980.0,0.00282]
[1730124607404,0.15050381,68985.0,68980.0,0.00282]
[1730124607638,0.144961,68984.0,68980.0,0.00082]
[1730124607870,0.144961,68984.0,68980.0,0.145788]
[1730124607871,0.144962,68984.0,68980.0,0.145788]
[1730124608111,0.44043081,68983.0,68981.0,0.001]
[1730124608357,0.144965,68982.0,68981.0,0.001]
[1730124608591,0.60726881,68982.0,68981.0,0.001]
[1730124608821,0.60926881,68982.0,68981.0,0.001]
[1730124609050,0.60726881,68982.0,68981.0,0.001]
[1730124609294,0.60926881,68982.0,68981.0,0.001]
[1730124609536,0.182967,68981.0,68980.0,0.00082]
[1730124609803,0.33347081,68981.0,68980.0,0.00082]
[1730124610046,0.43347081,68981.0,68980.0,0.00082]
[1730124610282,0.41047081,68981.0,68980.0,0.00082]
[1730124610520,0.30047081,68981.0,68980.0,0.00082]
[1730124610990,0.31447081,68981.0,68980.0,0.00082]
[1730124611635,0.42926691,68981.0,68980.0,0.00182]
[1730124611859,0.42926691,68981.0,68980.0,0.00082]
[1730124611860,0.31447081,68981.0,68980.0,0.00082]
[1730124612089,0.30547081,68981.0,68980.0,0.00082]
[1730124612322,0.30847081,68981.0,68980.0,0.00082]
[1730124612599,0.30347081,68981.0,68980.0,0.00082]
[1730124612832,0.289915,68986.0,68980.0,0.00082]
[1730124612833,0.144962,68984.0,68980.0,0.00082]
[1730124613078,0.1859,68991.0,68980.0,0.00082]
[1730124613079,0.0001,68996.0,68981.0,0.22152677]
[1730124613314,0.0001,68996.0,68995.0,0.144938]
[1730124613550,0.0001,68996.0,68995.0,0.3998406]
[1730124613783,0.0001,68996.0,68995.0,0.4998406]
[1730124614019,0.0001,68996.0,68995.0,0.5763406]
[1730124614250,0.0001,68996.0,68995.0,0.48694181]
[1730124614486,0.0001,68996.0,68995.0,0.53207799]
[1730124614716,0.0011,68996.0,68995.0,0.49494181]
[1730124614961,0.0011,68996.0,68995.0,0.48694181]
[1730124615437,0.0021,68996.0,68995.0,0.49894181]
[1730124615669,0.0021,68996.0,68995.0,0.338438]
[1730124615899,0.0021,68996.0,68995.0,0.348438]
[1730124616396,0.0031,68996.0,68995.0,0.35645787]
[1730124616627,0.0011,68996.0,68995.0,0.51996168]
[1730124616856,0.0001,68996.0,68995.0,0.51696168]
[1730124617090,0.0011,68996.0,68995.0,0.50796168]
[1730124617314,0.0021,68996.0,68995.0,0.50996168]
[1730124617548,0.0011,68996.0,68995.0,0.49596168]
[1730124617777,0.0021,68996.0,68995.0,0.51196168]
[1730124618258,0.0021,68996.0,68995.0,0.52096168]
[1730124618504,0.0031,68996.0,68995.0,0.53496168]
[1730124618762,0.0021,68996.0,68995.0,0.57615478]
[1730124619115,0.0031,68996.0,68995.0,0.50896168]
[1730124619352,0.0031,68996.0,68995.0,0.49694181]
[1730124619571,0.0021,68996.0,68995.0,0.49594181]
[1730124619802,0.0021,68996.0,68995.0,0.50294181]
[1730124620060,1e-06,68996.0,68995.0,0.48994181]
[1730124620293,0.21652677,69021.0,68995.0,0.48994181]
[1730124620294,0.21652677,69021.0,69020.0,0.244885]
[1730124620536,0.21652677,69021.0,69020.0,0.5047876]
[1730124620754,5e-05,69030.0,69029.0,0.144866]
[1730124620997,5e-05,69030.0,69029.0,0.3997686]
[1730124621234,5e-05,69030.0,69029.0,0.65527241]
[1730124621474,5e-05,69030.0,69029.0,0.244866]
[1730124622404,5e-05,69030.0,69029.0,0.144866]
[1730124622636,5e-05,69030.0,69024.0,0.02269387]
[1730124622831,5e-05,69030.0,69028.0,0.144867]
[1730124623123,5e-05,69030.0,69029.0,0.011]
[1730124623124,0.145914,69030.0,69029.0,0.011]
[1730124623360,0.29641781,69030.0,69029.0,0.011]
[1730124623597,0.28974,69028.0,69024.0,0.02269387]
[1730124623829,0.145914,69030.0,69029.0,0.013]
[1730124624064,0.434601,69029.0,69024.0,0.02269387]
[1730124624298,0.15050381,69029.0,69024.0,0.02269387]
[1730124624537,0.289737,69028.0,69024.0,0.02269387]
[1730124624768,0.144872,69027.0,69024.0,0.02269387]
[1730124624998,0.15050381,69029.0,69024.0,0.03369387]
[1730124625250,0.145869,69028.0,69024.0,0.03969387]
[1730124625526,0.00205,69030.0,69024.0,0.02869387]
[1730124625527,0.00105,69030.0,69024.0,0.02869387]
[1730124625748,0.001,69029.0,69024.0,0.03069387]
[1730124625979,0.001,69029.0,69028.0,0.144868]
[1730124626197,0.001,69029.0,69027.0,0.14487]
[1730124626434,0.001,69029.0,69026.0,0.289745]
[1730124626747,0.001,69029.0,69028.0,0.144868]
[1730124626837,5e-05,69030.0,69028.0,0.144868]
[1730124627070,5e-05,69030.0,69027.0,0.14487]
[1730124627297,0.001,69029.0,69027.0,0.14487]
[1730124627523,0.001,69029.0,69027.0,0.21652677]
[1730124627765,0.001,69029.0,69028.0,0.144868]
[1730124628002,0.002,69029.0,69028.0,0.144868]
[1730124628227,0.001,69029.0,69028.0,0.144868]
[1730124628687,0.00105,69030.0,69029.0,0.144866]
[1730124628927,0.00105,69030.0,69029.0,0.244866]
[1730124629163,1e-08,69030.0,69029.0,0.40526683]
[1730124629397,1e-08,69030.0,69029.0,0.41236981]
[1730124629625,1e-08,69030.0,69029.0,0.41036981]
[1730124630567,5e-05,69040.0,69039.0,0.144845]
[1730124631477,5e-05,69040.0,69031.0,0.005]
[1730124631478,5e-05,69040.0,69030.0,0.289729]
[1730124631716,0.144894,69040.0,69035.0,0.144853]
[1730124631964,0.144845,69039.0,69035.0,0.144853]
[1730124632189,5e-05,69040.0,69039.0,0.014]
[1730124632413,0.144893,69040.0,69039.0,0.014]
[1730124632642,5e-05,69040.0,69039.0,0.014]
[1730124632889,0.37269681,69040.0,69039.0,0.014]
[1730124633340,0.144851,69036.0,69035.0,0.004]
[1730124633556,0.29535481,69036.0,69035.0,0.004]
[1730124633775,0.76255741,69036.0,69035.0,0.004]
[1730124634009,0.83945741,69036.0,69035.0,0.004]
[1730124634261,0.83945741,69036.0,69027.0,0.21652677]
[1730124634262,0.005,69033.0,69027.0,0.21652677]
[1730124634532,0.144868,69028.0,69027.0,0.21652677]
[1730124634771,0.289748,69026.0,69019.0,0.36141177]
[1730124634991,0.144885,69020.0,69019.0,0.21652677]
[1730124635211,0.15050381,69020.0,69010.0,0.21652677]
[1730124635433,0.144902,69013.0,69010.0,0.21652677]
[1730124635662,0.15050381,69013.0,69011.0,0.144904]
[1730124635897,0.005,69023.0,69010.0,0.21652677]
[1730124635898,0.005,69027.0,69012.0,0.289804]
[1730124636119,0.144886,69020.0,69015.0,0.144896]
[1730124636341,0.15050381,69019.0,69016.0,0.144893]
[1730124636574,0.15050381,69019.0,69012.0,0.289804]
[1730124636575,0.144877,69024.0,69012.0,0.289804]
[1730124636799,0.29538381,69023.0,69019.0,0.144886]
[1730124637026,0.144881,69022.0,69017.0,0.28978]
[1730124637230,0.15050381,69021.0,69018.0,0.144888]
[1730124637875,0.14550381,69021.0,69018.0,0.144888]
[1730124638900,0.15050381,69021.0,69018.0,0.144888]
[1730124639146,0.15050381,69021.0,69013.0,0.2898]
[1730124639381,0.15050381,69021.0,69018.0,0.149889]
[1730124640300,0.29538781,69021.0,69018.0,0.005]
[1730124640588,0.3997896,69019.0,69018.0,0.005]
[1730124640829,0.55029341,69019.0,69018.0,0.005]
[1730124641753,0.15050381,69019.0,69010.0,0.21652677]
[1730124641999,0.15050381,69018.0,69010.0,0.21652677]
[1730124642352,0.29539481,69018.0,69010.0,0.21652677]
[1730124642404,0.144892,69017.0,69013.0,0.144898]
[1730124642607,0.144892,69017.0,69011.0,0.289808]
[1730124642608,0.15050381,69017.0,69011.0,0.289808]
[1730124642971,0.289757,69024.0,69002.0,0.289846]
[1730124642972,0.15050381,69016.0,69002.0,0.289846]
[1730124643189,0.29539781,69016.0,69008.0,0.21652677]
[1730124643390,0.29539781,69016.0,69004.0,0.289838]
[1730124643391,0.15050381,69016.0,69012.0,0.144902]
[1730124643628,0.15050381,69016.0,69010.0,0.001]
[1730124643832,0.144896,69015.0,69010.0,0.001]
[1730124644045,0.144896,69015.0,69011.0,0.144903]
[1730124644265,0.144896,69015.0,69012.0,0.144902]
[1730124644476,0.15050381,69016.0,69012.0,0.144902]
[1730124644698,0.289758,69023.0,69011.0,0.289808]
[1730124644958,0.00505,69030.0,69019.0,0.144887]
[1730124644959,5e-05,69020.0,69019.0,0.144887]
[1730124646479,5e-05,69020.0,69019.0,0.14878445]
[1730124646480,0.00905,69020.0,69019.0,0.14878445]
[1730124646696,0.00905,69020.0,69019.0,0.145887]
[1730124646903,0.00905,69020.0,69019.0,0.144887]
[1730124646904,5e-05,69020.0,69019.0,0.144887]
[1730124647512,5e-05,69020.0,69019.0,0.40139081]
[1730124647751,5e-05,69020.0,69019.0,0.41339081]
[1730124648005,5e-05,69020.0,69019.0,0.48631381]
[1730124648182,5e-05,69020.0,69019.0,0.54734069]
[1730124648448,5e-05,69020.0,69019.0,0.72894069]
[1730124648687,0.001646,69028.0,69027.0,0.5167726]
[1730124648925,0.001646,69028.0,69027.0,0.66727641]
[1730124649821,0.001646,69028.0,69027.0,0.66527641]
[1730124650100,0.001646,69028.0,69027.0,0.67427641]
[1730124650331,0.001646,69028.0,69027.0,0.66927641]
[1730124650575,0.001646,69028.0,69027.0,0.26387]
[1730124651016,0.001646,69028.0,69027.0,0.25887]
[1730124651249,0.001646,69028.0,69027.0,0.27287]
[1730124652124,0.001646,69028.0,69027.0,0.25887]
[1730124652570,0.001646,69028.0,69027.0,0.27187]
[1730124653012,0.001646,69028.0,69027.0,0.25887]
[1730124653452,0.001646,69028.0,69027.0,0.25687]
[1730124653666,0.001646,69028.0,69027.0,0.27087]
[1730124653892,0.001646,69028.0,69027.0,0.25887]
[1730124654109,0.001646,69028.0,69027.0,0.24487]
[1730124654331,0.001646,69028.0,69027.0,0.67217346]
[1730124654547,0.001646,69028.0,69027.0,0.68127641]
[1730124655206,0.001646,69028.0,69027.0,0.68827641]
[1730124657983,1e-08,69030.0,69029.0,0.61346981]
[1730124658428,1e-08,69030.0,69029.0,0.61146981]
[1730124658644,1e-08,69030.0,69029.0,0.65445793]
[1730124658856,1e-08,69030.0,69029.0,0.66145793]
[1730124659247,1e-08,69030.0,69029.0,0.61846981]
[1730124659700,1e-08,69030.0,69029.0,0.021]
[1730124659701,0.29536782,69030.0,69029.0,0.021]
[1730124659915,0.57886782,69030.0,69029.0,0.021]
[1730124660131,0.57886782,69030.0,69019.0,0.000823]
[1730124660132,0.4377876,69020.0,69019.0,0.000823]
[1730124660335,0.64569141,69020.0,69019.0,0.000823]
[1730124660759,0.63569141,69020.0,69019.0,0.000823]
[1730124660976,0.64569141,69020.0,69019.0,0.000823]
[1730124661447,0.58749709,69020.0,69019.0,0.000823]
[1730124661656,0.57398881,69020.0,69019.0,0.000823]
[1730124662090,0.79551558,69020.0,69019.0,0.000823]
[1730124662308,0.58398881,69020.0,69019.0,0.000823]
[1730124662744,0.58398881,69020.0,69019.0,0.001823]
[1730124662745,0.59498881,69020.0,69019.0,0.001823]
[1730124663164,0.59798881,69020.0,69019.0,0.001823]
[1730124663390,0.59798881,69020.0,69019.0,0.000823]
[1730124663391,0.87516984,69020.0,69019.0,0.000823]
[1730124663620,0.144912,69007.0,69006.0,0.21458585]
[1730124663828,0.29541681,69007.0,69000.0,0.144927]
[1730124664081,0.15050381,69006.0,68997.0,0.289863]
[1730124664301,0.144917,69005.0,68999.0,0.144928]
[1730124664526,0.144917,69005.0,68990.0,0.290719]
[1730124664527,0.15050381,69005.0,68990.0,0.290719]
[1730124664744,0.434758,69004.0,68998.0,0.144931]
[1730124664965,0.14492,69004.0,68998.0,0.144931]
[1730124665187,0.289804,69012.0,68993.0,0.1]
[1730124665474,0.21652677,69006.0,68993.0,0.1]
[1730124665692,0.44031581,69011.0,68993.0,0.1]
[1730124665693,0.005,69005.0,68994.0,0.3004623]
[1730124665892,0.005,69005.0,69002.0,0.144922]
[1730124666102,0.144913,69007.0,69002.0,0.144922]
[1730124666321,0.005,69004.0,69002.0,0.144922]
[1730124666527,0.005,69004.0,69003.0,0.144921]
[1730124666959,0.005,69004.0,69002.0,0.144923]
[1730124667166,0.005,69004.0,69001.0,0.144924]
[1730124667580,0.005,69004.0,69001.0,0.144923]
[1730124668013,0.005,69004.0,68997.0,0.579734]
[1730124668224,0.005,69004.0,68994.0,0.0105823]
[1730124668433,0.144916,69006.0,68998.0,0.289859]
[1730124668652,0.144916,69006.0,69002.0,0.144922]
[1730124668861,0.008,69005.0,69002.0,0.145922]
[1730124669074,0.008,69005.0,69002.0,0.001]
[1730124669313,0.144915,69006.0,69001.0,0.144925]
[1730124669544,0.289821,69009.0,68998.0,0.289859]
[1730124669770,0.289821,69008.0,69000.0,0.289855]
[1730124669992,0.289821,69008.0,68998.0,0.003]
[1730124669993,0.001,69004.0,69001.0,0.01189839]
[1730124670203,0.001,69004.0,69003.0,0.144921]
[1730124670428,0.21652677,69027.0,69002.0,0.289846]
[1730124670694,0.001,69006.0,69005.0,0.144917]
[1730124670945,0.002,69006.0,69005.0,0.6682212]
[1730124671192,0.21652677,69027.0,69026.0,0.144872]
[1730124671432,0.21652677,69027.0,69023.0,0.14043633]
[1730124671647,0.00164801,69030.0,69029.0,0.144866]
[1730124673273,0.00264801,69030.0,69029.0,0.158866]
[1730124673903,0.00364801,69030.0,69029.0,0.172866]
[1730124674121,0.00364801,69030.0,69029.0,0.158866]
[1730124674356,0.00264801,69030.0,69029.0,0.144866]
[1730124674582,0.00264801,69030.0,69029.0,0.158866]
[1730124675661,0.00364801,69030.0,69029.0,0.169866]
[1730124675880,0.00264801,69030.0,69029.0,0.155866]
[1730124676103,0.00264801,69030.0,69029.0,0.158866]
[1730124676540,0.00264801,69030.0,69029.0,0.153866]
[1730124676755,0.00364801,69030.0,69029.0,0.167866]
[1730124676971,0.00264801,69030.0,69029.0,0.144866]
[1730124677453,0.00464801,69030.0,69029.0,0.166866]
[1730124678581,0.00464801,69030.0,69029.0,0.16176309]
[1730124678803,0.00264801,69030.0,69029.0,0.158866]
[1730124679066,0.00264801,69030.0,69029.0,0.153866]
[1730124679273,0.00364801,69030.0,69029.0,0.167866]
[1730124679479,0.00264801,69030.0,69029.0,0.144866]
[1730124679924,0.00464801,69030.0,69029.0,0.166866]
[1730124680150,0.00264801,69030.0,69029.0,0.152866]
[1730124680374,0.00164801,69030.0,69029.0,0.144866]
[1730124680584,0.00264801,69030.0,69029.0,0.158866]
[1730124680801,0.00264801,69030.0,69029.0,0.153866]
[1730124681111,0.00264801,69030.0,69029.0,0.253866]
[1730124681983,0.00264801,69030.0,69029.0,0.244866]
[1730124681984,0.00164801,69030.0,69029.0,0.244866]
[1730124682211,0.00264801,69030.0,69029.0,0.26976295]
[1730124682441,0.00264801,69030.0,69029.0,0.51066555]
[1730124682684,0.00264801,69030.0,69029.0,0.5077686]
[1730124682909,0.00264801,69030.0,69029.0,0.5137686]
[1730124683125,0.00264801,69030.0,69029.0,0.244866]
[1730124683366,0.00364801,69030.0,69029.0,0.253866]
[1730124683631,0.00464801,69030.0,69029.0,0.267866]
[1730124683866,0.00264801,69030.0,69029.0,0.244866]
[1730124684320,0.00364801,69030.0,69029.0,0.258866]
[1730124685028,0.00364801,69030.0,69029.0,0.68216928]
[1730124685267,0.001696,69040.0,69039.0,0.3997476]
[1730124685514,0.001696,69040.0,69039.0,0.65025141]
[1730124685743,0.001696,69040.0,69039.0,0.65525141]
[1730124686902,0.002696,69040.0,69039.0,0.66925141]
[1730124687112,0.003696,69040.0,69039.0,0.66925141]
[1730124687336,0.004696,69040.0,69039.0,0.68325141]
[1730124688026,0.004696,69040.0,69039.0,0.272845]
[1730124688922,0.001696,69040.0,69039.0,0.244845]
[1730124689147,0.001696,69040.0,69039.0,0.258845]
[1730124689870,0.4014416,69040.0,69039.0,0.014]
[1730124690109,0.4014416,69040.0,69016.0,0.01]
[1730124690110,0.144867,69029.0,69025.0,0.21652677]
[1730124690358,0.51277127,69040.0,69025.0,0.21652677]
[1730124690359,0.2549026,69035.0,69025.0,0.21652677]
[1730124690595,0.2549026,69035.0,69014.0,0.21652677]
[1730124690596,0.14487,69027.0,69021.0,0.144881]
[1730124690830,0.44021581,69034.0,69021.0,0.144881]
[1730124690831,0.289728,69031.0,69021.0,0.289766]
[1730124691076,0.15050381,69031.0,69021.0,0.289766]
[1730124691310,0.15050381,69031.0,69020.0,0.289771]
[1730124691543,0.65695546,69040.0,69021.0,0.2244243]
[1730124691544,0.001696,69040.0,69021.0,0.2244243]
[1730124691782,0.21652677,69035.0,69034.0,0.144856]
[1730124692010,0.001696,69040.0,69025.0,0.28975]
[1730124692245,0.001696,69040.0,69024.0,0.00289707]
[1730124692246,0.001696,69040.0,69039.0,0.01]
[1730124692477,0.001696,69040.0,69021.0,0.22152677]
[1730124692685,0.001696,69040.0,69022.0,0.1]
[1730124692896,0.001696,69040.0,69035.0,0.144853]
[1730124693335,0.14654,69040.0,69035.0,0.144853]
[1730124693795,0.144846,69039.0,69033.0,0.289713]
[1730124693998,0.144846,69039.0,69034.0,0.144856]
[1730124695543,0.144846,69039.0,69035.0,0.009]
[1730124695773,0.001696,69040.0,69035.0,0.009]
[1730124695985,0.144846,69039.0,69034.0,0.144855]
[1730124696197,0.144846,69039.0,69034.0,0.154855]
[1730124696478,0.144846,69039.0,69035.0,0.144853]
[1730124696925,0.144846,69039.0,69035.0,0.153853]
[1730124697135,0.144846,69039.0,69035.0,0.144853]
[1730124697587,0.144846,69039.0,69033.0,0.289713]
[1730124697817,0.144846,69039.0,69034.0,0.144855]
[1730124698953,0.001696,69040.0,69037.0,0.144849]
[1730124699164,0.144845,69039.0,69034.0,0.154855]